fUST/lending_fUST_20250618
["ID","MTS","AMOUNT","RATE_DAILY","PERIOD"]
[366393835,1750229441006,-195.61146389,0.00022136,6]
[366393836,1750229441015,-260.0,0.00022136,6]
[366393837,1750229441025,-152.76320497,0.00022136,6]
[366393838,1750229441034,-458.28831631,0.00022136,6]
[366393839,1750229441044,-391.50363553,0.00022136,6]
[366393840,1750229441053,-176.8950107,0.00022136,6]
[366393841,1750229441062,-400.0,0.00022136,6]
[366393842,1750229441071,-460.0,0.00022136,6]
[366393843,1750229441081,-460.0,0.00022136,6]
[366393844,1750229441090,-460.0,0.00022136,6]
[366393845,1750229441099,-460.0,0.00022136,6]
[366393846,1750229441108,-240.01621852,0.00022136,6]
[366393847,1750229441117,-460.0,0.00022136,6]
[366393848,1750229441127,-587.82064343,0.00022136,6]
[366393849,1750229441136,-460.0,0.00022136,6]
[366393850,1750229441146,-460.0,0.00022136,6]
[366393851,1750229441155,-460.0,0.00022136,6]
[366393852,1750229441164,-460.0,0.00022136,6]
[366393853,1750229441174,-460.0,0.00022136,6]
[366393854,1750229441183,-460.0,0.00022136,6]
[366393855,1750229441192,-379.63339536,0.00022136,6]
[366393856,1750229441201,-444.26035766,0.00022136,6]
[366393857,1750229441211,-460.0,0.00022136,6]
[366393858,1750229441220,-465.87752997,0.00022136,6]
[366393859,1750229441229,-325.9180749,0.00022136,6]
[366393860,1750229441238,-340.0,0.00022136,6]
[366393861,1750229441247,-400.0,0.00022136,6]
[366393862,1750229441257,-500.0,0.00022136,6]
[366393863,1750229441266,-460.0,0.00022136,6]
[366393864,1750229441275,-460.0,0.00022136,6]
[366393865,1750229441284,-460.0,0.00022136,6]
[366393866,1750229441293,-460.0,0.00022136,6]
[366393867,1750229441302,-467.39421105,0.00022136,6]
[366393868,1750229441311,-370.40695297,0.00022136,6]
[366393869,1750229441320,-460.0,0.00022136,6]
[366393870,1750229441329,-460.0,0.00022136,6]
[366393871,1750229441338,-460.0,0.00022136,6]
[366393872,1750229441348,-460.0,0.00022136,6]
[366393873,1750229441357,-460.0,0.00022136,6]
[366393874,1750229441366,-460.0,0.00022136,6]
[366393875,1750229441375,-370.0,0.00022136,6]
[366393876,1750229441384,-430.0,0.00022136,6]
[366393877,1750229441393,-183.88,0.00022136,6]
[366393878,1750229441402,-517.38,0.00022136,6]
[366393879,1750229441411,-260.22309341,0.00022136,6]
[366393880,1750229441421,-460.0,0.00022136,6]
[366393881,1750229441430,-370.0,0.00022136,6]
[366393882,1750229441439,-460.0,0.00022136,6]
[366393883,1750229441448,-1001.06,0.00022136,6]
[366393884,1750229441457,-646.08,0.00022136,6]
[366393885,1750229441466,-714.92,0.00022136,6]
[366393886,1750229441476,-460.0,0.00022136,6]
[366393887,1750229441485,-370.0,0.00022136,6]
[366393888,1750229441495,-460.0,0.00022136,6]
[366393889,1750229441504,-381.27121487,0.00022136,6]
[366393890,1750229441516,-460.0,0.00022136,6]
[366393891,1750229441525,-1397.67,0.00022136,6]
[366393892,1750229441535,-181.73533407,0.00022136,6]
[366393893,1750229441544,-460.0,0.00022136,6]
[366393894,1750229441555,-460.0,0.00022136,6]
[366393895,1750229441564,-460.0,0.00022136,6]
[366393896,1750229441574,-460.0,0.00022136,6]
[366393897,1750229441584,-460.0,0.00022136,6]
[366393898,1750229441595,-460.0,0.00022136,6]
[366393899,1750229441605,-460.0,0.00022136,6]
[366393900,1750229441615,-460.0,0.00022136,6]
[366393901,1750229441625,-460.0,0.00022136,6]
[366393902,1750229441635,-460.0,0.00022136,6]
[366393903,1750229441644,-460.0,0.00022136,6]
[366393904,1750229441654,-325.03576064,0.00022136,6]
[366393905,1750229441664,-460.0,0.00022136,6]
[366393906,1750229441673,-460.0,0.00022136,6]
[366393907,1750229441684,-637.71,0.00022136,6]
[366393908,1750229441694,-460.0,0.00022136,6]
[366393909,1750229441703,-460.0,0.00022136,6]
[366393910,1750229441713,-417.16421749,0.00022136,6]
[366393911,1750229441723,-460.0,0.00022136,6]
[366393912,1750229441732,-456.00546887,0.00022136,6]
[366393913,1750229441742,-460.0,0.00022136,6]
[366393914,1750229441753,-460.0,0.00022136,6]
[366393915,1750229441762,-460.0,0.00022136,6]
[366393916,1750229441771,-460.0,0.00022136,6]
[366393917,1750229441781,-253.37556004,0.00022136,6]
[366393918,1750229441790,-460.0,0.00022136,6]
[366393919,1750229441799,-460.0,0.00022136,6]
[366393920,1750229441808,-460.0,0.00022136,6]
[366393921,1750229441818,-460.0,0.00022136,6]
[366393922,1750229441827,-460.0,0.00022136,6]
[366393923,1750229441837,-460.0,0.00022136,6]
[366393924,1750229441846,-460.0,0.00022136,6]
[366393925,1750229441855,-460.0,0.00022136,6]
[366393926,1750229441865,-460.0,0.00022136,6]
[366393927,1750229441875,-460.0,0.00022136,6]
[366393928,1750229441884,-460.0,0.00022136,6]
[366393929,1750229441894,-569.0,0.00022136,6]
[366393930,1750229441903,-465.71,0.00022136,6]
[366393931,1750229441912,-460.0,0.00022136,6]
[366393932,1750229441922,-460.0,0.00022136,6]
[366393933,1750229441932,-621.89,0.00022136,6]
[366393934,1750229441941,-460.0,0.00022136,6]
[366393935,1750229441950,-423.15301808,0.00022136,6]
[366393936,1750229441960,-230.60234251,0.00022136,6]
[366393937,1750229441970,-400.0,0.00022136,6]
[366393938,1750229441979,-420.64006613,0.00022136,6]
[366393939,1750229441988,-410.09113496,0.00022136,6]
[366393940,1750229441998,-460.0,0.00022136,6]
[366393941,1750229442007,-460.0,0.00022136,6]
[366393942,1750229442017,-233.08,0.00022136,6]
[366393943,1750229442026,-460.0,0.00022136,6]
[366393944,1750229442035,-460.0,0.00022136,6]
[366393945,1750229442045,-460.0,0.00022136,6]
[366393946,1750229442056,-460.0,0.00022136,6]
[366393947,1750229442065,-460.0,0.00022136,6]
[366393948,1750229442074,-460.0,0.00022136,6]
[366393949,1750229442084,-460.0,0.00022136,6]
[366393950,1750229442093,-460.0,0.00022136,6]
[366393951,1750229442103,-460.0,0.00022136,6]
[366393952,1750229442112,-460.0,0.00022136,6]
[366393953,1750229442121,-460.0,0.00022136,6]
[366393954,1750229442130,-460.0,0.00022136,6]
[366393955,1750229442140,-460.0,0.00022136,6]
[366393956,1750229442149,-460.0,0.00022136,6]
[366393957,1750229442158,-460.0,0.00022136,6]
[366393958,1750229442168,-2210.68,0.00022136,6]
[366393959,1750229442177,-460.0,0.00022136,6]
[366393960,1750229442187,-460.0,0.00022136,6]
[366393961,1750229442196,-460.0,0.00022136,6]
[366393962,1750229442206,-209.58600549,0.00022136,6]
[366393963,1750229442215,-460.0,0.00022136,6]
[366393964,1750229442225,-696.53,0.00022136,6]
[366393965,1750229442235,-615.68,0.00022136,6]
[366393967,1750229442245,-151.0,0.00022164,6]
[366393968,1750229442254,-151.0,0.00022164,6]
[366393970,1750229442264,-151.0,0.00022164,6]
[366393971,1750229442274,-272.09578767,0.00022176,6]
[366393972,1750229442283,-253.02241377,0.00022191,6]
[366393973,1750229442292,-845.78193577,0.00022192,2]
[366393974,1750229442302,-160.0,0.00022195,2]
[366393975,1750229442311,-160.0,0.00022195,2]
[366393976,1750229442321,-160.0,0.00022195,2]
[366393978,1750229442330,-835.98428123,0.00022195,2]
[366393983,1750229442430,-213.43818883,0.00022195,2]
[366393984,1750229442440,-160.0,0.00022195,2]
[366393985,1750229442450,-424.70586748,0.00022195,2]
[366393986,1750229442460,-160.0,0.00022216,2]
[366393987,1750229442469,-229.98435572,0.00022216,2]
[366393988,1750229442479,-12542.39314967,0.00022216,2]
[366393989,1750229442488,-160.0,0.00022216,2]
[366393990,1750229442498,-500.0,0.00022217,6]
[366393991,1750229442509,-460.0,0.00022246,6]
[366393992,1750229442522,-354.85028011,0.00022246,6]
[366393993,1750229442531,-359.71631909,0.00022246,6]
[366393994,1750229442541,-460.0,0.00022246,6]
[366393995,1750229442551,-440.0,0.00022246,6]
[366393996,1750229442561,-297.47346994,0.00022246,6]
[366393997,1750229442570,-460.0,0.00022246,6]
[366393998,1750229442580,-440.0,0.00022246,6]
[366393999,1750229442590,-174.79390091,0.00022246,6]
[366394000,1750229442599,-460.0,0.00022246,6]
[366394001,1750229442609,-460.0,0.00022246,6]
[366394002,1750229442619,-460.0,0.00022246,6]
[366394003,1750229442629,-460.0,0.00022246,6]
[366394004,1750229442639,-460.0,0.00022246,6]
[366394005,1750229442649,-517.38,0.00022246,6]
[366394006,1750229442659,-460.0,0.00022246,6]
[366394007,1750229442669,-1001.06,0.00022246,6]
[366394008,1750229442679,-646.08,0.00022246,6]
[366394009,1750229442688,-714.92,0.00022246,6]
[366394010,1750229442698,-460.0,0.00022246,6]
[366394011,1750229442707,-460.0,0.00022246,6]
[366394012,1750229442717,-1397.67,0.00022246,6]
[366394013,1750229442727,-460.0,0.00022246,6]
[366394014,1750229442736,-460.0,0.00022246,6]
[366394015,1750229442746,-460.0,0.00022246,6]
[366394016,1750229442756,-460.0,0.00022246,6]
[366394017,1750229442765,-460.0,0.00022246,6]
[366394018,1750229442775,-237.02726689,0.00022246,6]
[366394019,1750229442784,-526.46742463,0.00022246,6]
[366394020,1750229442793,-460.0,0.00022246,6]
[366394021,1750229442803,-637.71,0.00022246,6]
[366394022,1750229442812,-460.0,0.00022246,6]
[366394023,1750229442822,-599.07,0.00022246,6]
[366394024,1750229442832,-460.0,0.00022246,6]
[366394025,1750229442841,-460.0,0.00022246,6]
[366394026,1750229442851,-460.0,0.00022246,6]
[366394027,1750229442860,-460.0,0.00022246,6]
[366394028,1750229442869,-329.08504251,0.00022246,6]
[366394029,1750229442879,-460.0,0.00022246,6]
[366394031,1750229442888,-460.0,0.00022246,6]
[366394033,1750229442898,-254.15,0.00022246,6]
[366394035,1750229442907,-460.0,0.00022246,6]
[366394037,1750229442917,-460.0,0.00022246,6]
[366394038,1750229442926,-465.71,0.00022246,6]
[366394039,1750229442935,-460.0,0.00022246,6]
[366394040,1750229442944,-460.0,0.00022246,6]
[366394041,1750229442953,-621.89,0.00022246,6]
[366394042,1750229442963,-530.9,0.00022246,6]
[366394043,1750229442972,-460.0,0.00022246,6]
[366394044,1750229442982,-460.0,0.00022246,6]
[366394045,1750229442991,-460.0,0.00022246,6]
[366394046,1750229443001,-460.0,0.00022246,6]
[366394047,1750229443010,-460.0,0.00022246,6]
[366394048,1750229443019,-460.0,0.00022246,6]
[366394049,1750229443029,-460.0,0.00022246,6]
[366394050,1750229443039,-460.0,0.00022246,6]
[366394052,1750229443048,-460.0,0.00022246,6]
[366394053,1750229443057,-460.0,0.00022246,6]
[366394054,1750229443067,-460.0,0.00022246,6]
[366394055,1750229443076,-471.78,0.00022246,6]
[366394056,1750229443085,-2210.68,0.00022246,6]
[366394057,1750229443094,-460.0,0.00022246,6]
[366394058,1750229443103,-696.53,0.00022246,6]
[366394059,1750229443113,-615.68,0.00022246,6]
[366394060,1750229443122,-508.65130051,0.0002225,2]
[366394061,1750229443132,-402.45191863,0.0002228,2]
[366394062,1750229443141,-272.09578767,0.00022314,7]
[366394063,1750229443150,-500.0,0.00022355,6]
[366394064,1750229443160,-325.61,0.00022356,6]
[366394065,1750229443170,-460.0,0.00022356,6]
[366394066,1750229443179,-460.0,0.00022356,6]
[366394067,1750229443189,-260.56,0.00022356,6]
[366394068,1750229443198,-517.38,0.00022356,6]
[366394069,1750229443208,-263.43,0.00022356,6]
[366394070,1750229443217,-1001.06,0.00022356,6]
[366394071,1750229443227,-646.08,0.00022356,6]
[366394072,1750229443236,-40.28317089,0.00022356,6]
[366394073,1750229444061,-5000.0,0.00021697,2]
[366394074,1750229444071,-500.0,0.00021912,2]
[366394075,1750229444081,-500.0,0.00021912,2]
[366394076,1750229444092,-178.96501656,0.00021912,2]
[366394077,1750229444102,-500.0,0.00021912,2]
[366394078,1750229444111,-500.0,0.00021912,2]
[366394079,1750229444121,-500.0,0.00021912,2]
[366394080,1750229444131,-500.0,0.00021912,2]
[366394081,1750229444141,-508.65328579,0.00021912,2]
[366394082,1750229444151,-192.33014343,0.00021912,2]
[366394083,1750229444160,-500.0,0.00021912,2]
[366394084,1750229444170,-158.73296651,0.00021912,2]
[366394085,1750229444180,-500.0,0.00021912,2]
[366394086,1750229444190,-466.95378484,0.00021912,2]
[366394087,1750229444199,-500.0,0.00021912,2]
[366394088,1750229444208,-500.0,0.00021912,2]
[366394089,1750229444218,-500.0,0.00021912,2]
[366394090,1750229444227,-500.0,0.00021912,2]
[366394091,1750229444237,-500.0,0.00021912,2]
[366394092,1750229444247,-500.0,0.00021912,2]
[366394093,1750229444256,-600.0,0.00021912,2]
[366394094,1750229444266,-500.0,0.00021912,2]
[366394095,1750229444275,-394.0396285,0.00021912,2]
[366394096,1750229444285,-500.0,0.00021912,2]
[366394097,1750229444295,-500.0,0.00021912,2]
[366394098,1750229444304,-500.0,0.00021912,2]
[366394099,1750229444314,-500.0,0.00021912,2]
[366394100,1750229444323,-500.0,0.00021912,2]
[366394101,1750229444334,-460.0,0.00021917,6]
[366394102,1750229444343,-460.0,0.00021917,6]
[366394103,1750229444353,-460.0,0.00022027,6]
[366394104,1750229444362,-460.0,0.00022027,6]
[366394105,1750229444371,-460.0,0.00022136,6]
[366394106,1750229444382,-420.19,0.00022136,6]
[366394107,1750229444391,-460.0,0.00022246,6]
[366394108,1750229444401,-170.69451408,0.00022356,6]
[366394109,1750229444413,-503.94231503,0.00022356,6]
[366394110,1750229444423,-460.0,0.00022356,6]
[366394111,1750229444432,-460.0,0.00022356,6]
[366394112,1750229444441,-1282.98632673,0.00022356,6]
[366394113,1750229444453,-114.68367327,0.00022356,6]
[366394114,1750229444463,-460.0,0.00022356,6]
[366394115,1750229444472,-460.0,0.00022356,6]
[366394116,1750229444482,-460.0,0.00022356,6]
[366394117,1750229444491,-460.0,0.00022356,6]
[366394118,1750229444500,-637.71,0.00022356,6]
[366394119,1750229444510,-460.0,0.00022356,6]
[366394120,1750229444524,-460.0,0.00022356,6]
[366394121,1750229444533,-460.0,0.00022356,6]
[366394122,1750229444543,-460.0,0.00022356,6]
[366394123,1750229444552,-460.0,0.00022356,6]
[366394124,1750229444562,-437.15,0.00022356,6]
[366394125,1750229444572,-460.0,0.00022356,6]
[366394126,1750229444582,-465.71,0.00022356,6]
[366394127,1750229444592,-312.20632673,0.00022356,6]
[366394128,1750229444605,-147.79367327,0.00022356,6]
[366394129,1750229444614,-342.1925951,0.00022356,6]
[366394130,1750229444623,-621.89,0.00022356,6]
[366394131,1750229444725,-460.0,0.00022356,6]
[366394132,1750229444736,-460.0,0.00022356,6]
[366394133,1750229444746,-460.0,0.00022356,6]
[366394134,1750229444756,-460.0,0.00022356,6]
[366394135,1750229444765,-430.0,0.00022356,6]
[366394136,1750229444776,-460.0,0.00022356,6]
[366394137,1750229444785,-460.0,0.00022356,6]
[366394138,1750229444795,-460.0,0.00022356,6]
[366394139,1750229444804,-460.0,0.00022356,6]
[366394140,1750229444814,-460.0,0.00022356,6]
[366394141,1750229444823,-460.0,0.00022356,6]
[366394142,1750229444833,-2210.68,0.00022356,6]
[366394143,1750229444843,-460.0,0.00022356,6]
[366394144,1750229444852,-696.53,0.00022356,6]
[366394145,1750229444862,-615.68,0.00022356,6]
[366394146,1750229444871,-460.0,0.00022356,6]
[366394147,1750229444881,-272.09578767,0.00022452,7]
[366394148,1750229444892,-478.12,0.00022465,6]
[366394149,1750229444903,-517.38,0.00022465,6]
[366394150,1750229444913,-1001.06,0.00022465,6]
[366394151,1750229444923,-714.92,0.00022465,6]
[366394152,1750229444933,-460.0,0.00022465,6]
[366394153,1750229444942,-1397.67,0.00022465,6]
[366394154,1750229444951,-460.0,0.00022465,6]
[366394155,1750229444962,-460.0,0.00022465,6]
[366394156,1750229444972,-460.0,0.00022465,6]
[366394157,1750229444981,-375.98,0.00022465,6]
[366394158,1750229444991,-637.71,0.00022465,6]
[366394159,1750229445000,-460.0,0.00022465,6]
[366394160,1750229445010,-460.0,0.00022465,6]
[366394161,1750229445020,-460.0,0.00022465,6]
[366394162,1750229445030,-237.41,0.00022465,6]
[366394163,1750229445039,-465.71,0.00022465,6]
[366394164,1750229445049,-460.0,0.00022465,6]
[366394165,1750229445060,-621.89,0.00022465,6]
[366394166,1750229445069,-460.0,0.00022465,6]
[366394167,1750229445079,-460.0,0.00022465,6]
[366394168,1750229445088,-460.0,0.00022465,6]
[366394169,1750229445098,-230.13,0.00022465,6]
[366394170,1750229445108,-460.0,0.00022465,6]
[366394171,1750229445117,-460.0,0.00022465,6]
[366394172,1750229445127,-460.0,0.00022465,6]
[366394173,1750229445138,-460.0,0.00022465,6]
[366394174,1750229445147,-460.0,0.00022465,6]
[366394175,1750229445157,-460.0,0.00022465,6]
[366394176,1750229445166,-2210.68,0.00022465,6]
[366394177,1750229445176,-460.0,0.00022465,6]
[366394178,1750229445186,-696.53,0.00022465,6]
[366394179,1750229445196,-615.68,0.00022465,6]
[366394180,1750229445206,-460.0,0.00022465,6]
[366394181,1750229445215,-286.21130082,0.00022521,2]
[366394182,1750229445226,-517.38,0.00022575,6]
[366394183,1750229445237,-1001.06,0.00022575,6]
[366394184,1750229445248,-714.92,0.00022575,6]
[366394185,1750229445258,-1397.67,0.00022575,6]
[366394186,1750229445267,-460.0,0.00022575,6]
[366394187,1750229445276,-460.0,0.00022575,6]
[366394188,1750229445286,-460.0,0.00022575,6]
[366394189,1750229445295,-637.71,0.00022575,6]
[366394190,1750229445304,-315.37,0.00022575,6]
[366394191,1750229445314,-460.0,0.00022575,6]
[366394192,1750229445323,-460.0,0.00022575,6]
[366394193,1750229445332,-465.71,0.00022575,6]
[366394194,1750229445342,-460.0,0.00022575,6]
[366394195,1750229445352,-621.89,0.00022575,6]
[366394196,1750229445361,-460.0,0.00022575,6]
[366394197,1750229445370,-460.0,0.00022575,6]
[366394198,1750229445380,-460.0,0.00022575,6]
[366394199,1750229445389,-460.0,0.00022575,6]
[366394200,1750229445399,-444.21801827,0.00022575,6]
[366394202,1750229445407,-358.16287699,0.00022575,6]
[366394205,1750229445417,-460.0,0.00022575,6]
[366394206,1750229445426,-460.0,0.00022575,6]
[366394207,1750229445435,-460.0,0.00022575,6]
[366394208,1750229445444,-2210.68,0.00022575,6]
[366394209,1750229445454,-460.0,0.00022575,6]
[366394210,1750229445463,-696.53,0.00022575,6]
[366394211,1750229445473,-615.68,0.00022575,6]
[366394212,1750229445482,-460.0,0.00022575,6]
[366394213,1750229445491,-272.09578767,0.0002259,7]
[366394214,1750229445500,-476.0,0.00022604,2]
[366394215,1750229445510,-1000.0,0.00022621,2]
[366394216,1750229445521,-442.82995944,0.00022621,2]
[366394217,1750229445532,-1004.29408169,0.00022621,2]
[366394218,1750229445541,-500.0,0.00022621,2]
[366394219,1750229445551,-207.4,0.00022632,2]
[366394220,1750229445562,-5000.0,0.00022632,2]
[366394221,1750229445572,-24250.82428448,0.00022632,2]
[366394222,1750229445582,-7003.44463276,0.00022658,7]
[366394223,1750229445593,-7003.44463276,0.00022658,7]
[366394224,1750229445603,-12542.39314967,0.00022658,7]
[366394225,1750229445612,-213.43818883,0.00022658,7]
[366394226,1750229445623,-151.0,0.00022658,7]
[366394227,1750229445632,-517.38,0.00022684,6]
[366394228,1750229445642,-1001.06,0.00022684,6]
[366394229,1750229445651,-714.92,0.00022684,6]
[366394230,1750229445662,-1397.67,0.00022684,6]
[366394231,1750229445672,-460.0,0.00022684,6]
[366394232,1750229445683,-460.0,0.00022684,6]
[366394233,1750229445693,-460.0,0.00022684,6]
[366394234,1750229445703,-637.71,0.00022684,6]
[366394235,1750229445713,-460.0,0.00022684,6]
[366394236,1750229445722,-460.0,0.00022684,6]
[366394237,1750229445732,-465.71,0.00022684,6]
[366394238,1750229445742,-460.0,0.00022684,6]
[366394239,1750229445751,-621.89,0.00022684,6]
[366394240,1750229445761,-267.12,0.00022684,6]
[366394241,1750229445770,-460.0,0.00022684,6]
[366394242,1750229445781,-460.0,0.00022684,6]
[366394243,1750229445791,-460.0,0.00022684,6]
[366394244,1750229445801,-460.0,0.00022684,6]
[366394245,1750229445810,-460.0,0.00022684,6]
[366394246,1750229445820,-389.9,0.00022684,6]
[366394247,1750229445829,-2210.68,0.00022684,6]
[366394248,1750229445840,-460.0,0.00022684,6]
[366394249,1750229445850,-696.53,0.00022684,6]
[366394250,1750229445860,-615.68,0.00022684,6]
[366394251,1750229445871,-460.0,0.00022684,6]
[366394252,1750229445881,-322.6313868,0.00022685,2]
[366394253,1750229445891,-238.341457,0.00022685,2]
[366394254,1750229445901,-1203.8189346,0.00022685,2]
[366394255,1750229445911,-153.0,0.00022685,2]
[366394256,1750229445920,-153.0,0.00022685,2]
[366394258,1750229445929,-177.1504183,0.00022685,2]
[366394260,1750229445938,-153.0,0.00022685,2]
[366394262,1750229445949,-177.1504183,0.00022685,2]
[366394264,1750229445959,-574.2153043,0.00022685,2]
[366394266,1750229445968,-153.0,0.00022685,2]
[366394268,1750229445977,-272.09578767,0.00022728,7]
[366394270,1750229445987,-476.0,0.00022744,2]
[366394272,1750229445997,-402.45191863,0.00022744,2]
[366394274,1750229446006,-517.38,0.00022794,6]
[366394276,1750229446015,-1001.06,0.00022794,6]
[366394278,1750229446025,-714.92,0.00022794,6]
[366394280,1750229446034,-1397.67,0.00022794,6]
[366394282,1750229446043,-460.0,0.00022794,6]
[366394284,1750229446053,-460.0,0.00022794,6]
[366394287,1750229446063,-460.0,0.00022794,6]
[366394289,1750229446072,-637.71,0.00022794,6]
[366394291,1750229446081,-460.0,0.00022794,6]
[366394292,1750229446091,-460.0,0.00022794,6]
[366394294,1750229446100,-465.71,0.00022794,6]
[366394296,1750229446109,-255.42,0.00022794,6]
[366394298,1750229446118,-621.89,0.00022794,6]
[366394300,1750229446128,-460.0,0.00022794,6]
[366394302,1750229446137,-460.0,0.00022794,6]
[366394304,1750229446146,-460.0,0.00022794,6]
[366394306,1750229446156,-460.0,0.00022794,6]
[366394308,1750229446165,-460.0,0.00022794,6]
[366394310,1750229446174,-2210.68,0.00022794,6]
[366394312,1750229446183,-460.0,0.00022794,6]
[366394314,1750229446192,-151.0,0.00022794,7]
[366394316,1750229446201,-696.53,0.00022794,6]
[366394318,1750229446211,-163.536723,0.00022794,7]
[366394320,1750229446220,-615.68,0.00022794,6]
[366394322,1750229446230,-274.93,0.00022794,6]
[366394324,1750229446239,-250.0,0.00022824,2]
[366394326,1750229446248,-272.09578767,0.00022866,8]
[366394328,1750229446257,-517.38,0.00022904,6]
[366394330,1750229446267,-1001.06,0.00022904,6]
[366394332,1750229446277,-714.92,0.00022904,6]
[366394333,1750229446286,-1397.67,0.00022904,6]
[366394334,1750229446295,-460.0,0.00022904,6]
[366394335,1750229446304,-460.0,0.00022904,6]
[366394336,1750229446313,-460.0,0.00022904,6]
[366394337,1750229446323,-637.71,0.00022904,6]
[366394338,1750229446332,-360.11695304,0.00022904,6]
[366394339,1750229446342,-460.0,0.00022904,6]
[366394340,1750229446351,-151.0,0.00022904,7]
[366394341,1750229446361,-465.71,0.00022904,6]
[366394342,1750229446371,-621.89,0.00022904,6]
[366394343,1750229446381,-151.0,0.00022904,7]
[366394344,1750229446393,-151.0,0.00022904,7]
[366394345,1750229446403,-460.0,0.00022904,6]
[366394346,1750229446414,-460.0,0.00022904,6]
[366394347,1750229446423,-460.0,0.00022904,6]
[366394348,1750229446434,-460.0,0.00022904,6]
[366394349,1750229446444,-460.0,0.00022904,6]
[366394350,1750229446455,-2210.68,0.00022904,6]
[366394351,1750229446464,-460.0,0.00022904,6]
[366394352,1750229446473,-696.53,0.00022904,6]
[366394353,1750229446483,-615.68,0.00022904,6]
[366394354,1750229446492,-272.09578767,0.00023003,8]
[366394355,1750229446501,-517.38,0.00023013,6]
[366394356,1750229446511,-1001.06,0.00023013,6]
[366394357,1750229446524,-714.92,0.00023013,6]
[366394358,1750229446534,-151.0,0.00023013,7]
[366394359,1750229446543,-1397.67,0.00023013,6]
[366394360,1750229446552,-151.0,0.00023013,7]
[366394361,1750229446563,-460.0,0.00023013,6]
[366394362,1750229446572,-460.0,0.00023013,6]
[366394363,1750229446581,-460.0,0.00023013,6]
[366394364,1750229446591,-637.71,0.00023013,6]
[366394365,1750229446600,-1003.790933,0.00023013,2]
[366394366,1750229446609,-1003.790933,0.00023013,2]
[366394367,1750229446619,-162.793971,0.00023013,7]
[366394368,1750229446629,-264.711333,0.00023013,7]
[366394369,1750229446638,-153.204073,0.00023013,7]
[366394370,1750229446648,-460.0,0.00023013,6]
[366394371,1750229446657,-465.71,0.00023013,6]
[366394372,1750229446667,-621.89,0.00023013,6]
[366394373,1750229446676,-460.0,0.00023013,6]
[366394374,1750229446685,-460.0,0.00023013,6]
[366394375,1750229446695,-460.0,0.00023013,6]
[366394376,1750229446704,-460.0,0.00023013,6]
[366394377,1750229446713,-460.0,0.00023013,6]
[366394378,1750229446722,-2210.68,0.00023013,6]
[366394379,1750229446813,-460.0,0.00023013,6]
[366394380,1750229446823,-696.53,0.00023013,6]
[366394381,1750229446833,-615.68,0.00023013,6]
[366394382,1750229446842,-517.38,0.00023123,6]
[366394383,1750229446851,-1001.06,0.00023123,6]
[366394384,1750229446862,-714.92,0.00023123,6]
[366394385,1750229446871,-1397.67,0.00023123,6]
[366394386,1750229446881,-460.0,0.00023123,6]
[366394387,1750229446891,-460.0,0.00023123,6]